Cogmind - Beta 13 @@@ ROGUE MODE // 2024.06.29 @ 13:10:34 Player: RAT Result: Destroyed by G-34 Mercenary with Small Laser Performance ------------- Evolutions (1) 500 Regions Visited (3) 600 Robots Destroyed (16) 80 Value Destroyed (339) 339 Prototype IDs (1) 20 Alien Tech Used (0) 0 Bonus (0) 0 TOTAL SCORE: 1539 Bonus ------- None Cogmind --------- Core Integrity 0/400 Matter 276/300 Energy 92/100 System Corruption 0% Temperature Cool (6) Movement Core (200) Ox3 Location -9/Materials Parts ------- > --- POWER (2) -------- (None) > --- PROPULSION (2) --- Faulty Improved Flight Unit > --- UTILITY (3) ------ Medium Storage Unit Signal Interpreter > --- WEAPON (2) ------- (None) > --- INVENTORY (10) --- Faulty Improved Flight Unit Trap Extractor (0/4) Small Laser Assault Rifle EMP Blaster Peak State ------------ > --- POWER ------------ Ion Engine > --- PROPULSION ------- Light Treads Light Treads > --- UTILITY ---------- Medium Storage Unit Signal Interpreter Seismic Detector > --- WEAPON ----------- Light EM Pulse Cannon EMP Blaster > --- INVENTORY -------- Improved Flight Unit Improved Flight Unit Core Shielding Trap Extractor Small Laser Assault Rifle [Rating: 11] Favorites ----------- Power Ion Engine Engine Ion Engine Propulsion Light Treads Treads Light Treads Flight Unit Improved Flight Unit Utility Medium Storage Unit Device Seismic Detector Storage Medium Storage Unit Processor Signal Interpreter Protection Core Shielding Weapon Assault Rifle Energy Gun Small Laser Energy Cannon Light EM Pulse Cannon Ballistic Gun Assault Rifle Launcher EMP Blaster Build | -11 -10 -10 -9 ------- Run | Yrd Mat Min Mat Slots Evolved 2 | . . . 2 Power 1 | . . . 1 Propulsion . | . . . . Utility 1 | . . . 1 Weapon . | . . . . Parts Attached 16 | 7 2 . 7 Power 2 | 1 . . 1 Engine 2 | 1 . . 1 Core . | . . . . Reactor . | . . . . Propulsion 3 | 2 . . 1 Treads 2 | 2 . . . Leg . | . . . . Wheel . | . . . . Hover . | . . . . Flight 1 | . . . 1 Utility 6 | 2 2 . 2 Device 2 | 1 . . 1 Storage 2 | 1 1 . . Processor 1 | . 1 . . Hackware . | . . . . Protection 1 | . . . 1 Artifact . | . . . . Weapon 5 | 2 . . 3 Energy Gun 1 | 1 . . . Energy Cannon 1 | . . . 1 Ballistic Gun 1 | 1 . . . Ballistic Cannon . | . . . . Launcher 2 | . . . 2 Special Weapon . | . . . . Impact Weapon . | . . . . Slashing Weapon . | . . . . Piercing Weapon . | . . . . Special Melee Weapon . | . . . . Unidentified Prototypes 1 | . . . 1 Parts Lost 8 | . . . 8 Power 2 | . . . 2 Propulsion 2 | . . . 2 Utility 2 | . . . 2 Weapon 2 | . . . 2 Highest Loss Streak 5 | . . . 5 To Critical Strikes . | . . . . Average Slot Usage (%) 82 | . 100 100 71 Engine 11 | . 14 14 10 Treads 19 | . 28 28 13 Device 6 | . 10 . 5 Storage 12 | . 14 14 11 Processor 8 | . 4 14 11 Protection 2 | . . . 3 Energy Gun 8 | . 14 14 4 Energy Cannon 1 | . . . 1 Ballistic Gun 8 | . 14 14 5 Launcher 2 | . . . 3 Naked Turns . | . . . . Heaviest Build 24 | 14 19 18 24 Greatest Support 40 | 40 40 40 40 Greatest Overweight (x) 4 | 1 . . 4 Average Overweight (x) . | . . . 1 Largest Inventory Capacity 10 | 8 10 10 10 Average Capacity 9 | 7 8 10 10 Most Carried 8 | 8 5 5 8 Average Carried 4 | 3 3 5 5 Final Capacity 10 | 8 10 10 10 Final Carried 5 | 3 5 5 5 Class Distribution -------------------- 100% | Mutant Dominant Class ---------------- Mutant | -10/Materials Mutant | -10/Mines Mutant | -9/Materials Resources | -11 -10 -10 -9 ----------- Run | Yrd Mat Min Mat Matter Collected 435 | 244 55 17 119 Remotely . | . . . . Salvage Created 531 | 89 55 17 370 Parts 32 | 6 8 2 16 Haulers Intercepted . | . . . . Recyclers Shooed 2 | . 1 . 1 Parts Field Recycled . | . . . . Retrieved Matter . | . . . . Parts Self-Destructed . | . . . . Prevented . | . . . . Kills | -11 -10 -10 -9 ------- Run | Yrd Mat Min Mat Combat Hostiles Destroyed 12 | . 2 1 9 Guns 4 | . 2 1 1 AOE 8 | . . . 8 Classes Destroyed 6 | 2 2 . 2 Tunneler 1 | 1 . . . Recycler 2 | 1 . . 1 Watcher 1 | . 1 . . Swarmer 7 | . 2 1 4 Grunt 4 | . . . 4 Sentry 1 | . . . 1 Best Kill Streak 4 | 2 2 1 4 Combat Bots Only 4 | . 2 1 4 Max Kills in Single Turn 2 | 1 1 1 2 Gunslinging . | . . . . Exploded 2 | . . . 2 Melee . | . . . . Uniques/NPCs Destroyed . | . . . . Combat | -11 -10 -10 -9 -------- Run | Yrd Mat Min Mat Hostile Shots Fired 200 | . 36 15 149 Missed 72 | . 13 6 53 Damage Taken 1434 | . 223 71 1140 Core 473 | . 67 . 406 Absorbed by Shields . | . . . . Redirected to Shielding 50 | . . . 50 Core Remaining (%) 86 | 100 . 73 . Volleys Fired 39 | 7 13 1 18 Largest 2 | 2 2 2 2 Hottest 60 | 60 60 60 60 Shots Fired 66 | 14 26 2 24 Gun 54 | 14 26 2 12 Cannon . | . . . . Launcher 12 | . . . 12 Special . | . . . . Kinetic 27 | 7 13 1 6 Thermal 27 | 7 13 1 6 Explosive . | . . . . Electromagnetic 12 | . . . 12 Robot Hit Streak 7 | 2 7 1 6 Robot Miss Streak 4 | 1 4 1 2 Penetration Max . | . . . . Secondary Targets . | . . . . Shots Hit Robots 39 | 8 14 1 16 Core Hits 27 | 3 5 1 18 Critical Kills . | . . . . Critical Parts Destroyed . | . . . . Critical Strikes . | . . . . Melee Attacks . | . . . . Impact . | . . . . Slashing . | . . . . Piercing . | . . . . Sneak Attacks . | . . . . Combat Hostiles . | . . . . Follow-up Attacks . | . . . . Damage Inflicted 974 | 92 161 13 708 Guns 371 | 92 161 13 105 Cannons . | . . . . Explosions 603 | . . . 603 Melee . | . . . . Ramming . | . . . . Kinetic 203 | 45 95 13 50 Thermal 219 | 47 66 . 106 Explosive . | . . . . Electromagnetic 552 | . . . 552 Impact . | . . . . Slashing . | . . . . Piercing . | . . . . Highest Corruption . | . . . . Average Corruption . | . . . . Corruption Purged . | . . . . Corruption Blocked . | . . . . Overload Shots . | . . . . Overflow Damage . | . . . . Projectiles . | . . . . Explosions . | . . . . Melee . | . . . . Knockbacks . | . . . . Impact . | . . . . Kinetic . | . . . . Secondary . | . . . . Self-Inflicted Damage 21 | . . . 21 Shots 2 | . . . 2 Rammed . | . . . . Targets Rammed . | . . . . Kicked . | . . . . Crushed . | . . . . Highest Temperature 8 | . . . 8 Average Temperature 4 | . . . 4 Received Heat Transfer 564 | . 48 . 516 Siege Activations . | . . . . Robots Corrupted . | . . . . Combat Hostiles . | . . . . Parts Fried 5 | . . . 5 Impact Corruptions . | . . . . Robots Melted . | . . . . Combat Hostiles . | . . . . Parts Melted . | . . . . Heat Transferred 525 | 100 150 . 275 Parts Sabotaged . | . . . . Parts Stolen . | . . . . Parts Stripped . | . . . . Power Chain Reactions 2 | . . . 2 Alert | -11 -10 -10 -9 ------- Run | Yrd Mat Min Mat Peak Influence 340 | 10 113 63 340 Initial 43 | . 6 43 24 Average 90 | 5 54 47 127 Maximum Alert Level 1 | . . . 1 Low Security (%) 83 | 100 100 100 71 Level 1 16 | . . . 28 Level 2 . | . . . . Level 3 . | . . . . Level 4 . | . . . . Level 5 . | . . . . High Security . | . . . . Max Security . | . . . . Squads Dispatched 1 | . . . 1 Investigation . | . . . . Extermination . | . . . . Reinforcement 1 | . . . 1 Assault . | . . . . Garrison . | . . . . Intercept . | . . . . Searches Triggered . | . . . . Construction Impeded 1 | . . . 1 Haulers Reinforced . | . . . . Active Scanning Responses . | . . . . Cargo Convoy Interrupts . | . . . . Stealth | -11 -10 -10 -9 --------- Run | Yrd Mat Min Mat Distress Signals 3 | . 1 . 2 Communications Jammed . | . . . . Distress Signals . | . . . . Times Spotted 36 | . 8 3 25 Peak Tracking Total 8 | . 4 3 8 Tactical Retreats 6 | . . . 6 Traps | -11 -10 -10 -9 ------- Run | Yrd Mat Min Mat Traps Triggered 2 | . . . 2 Indirectly 1 | . . . 1 Trap Hack Attempts . | . . . . Triggered . | . . . . Disarmed . | . . . . Reprogrammed . | . . . . Reused . | . . . . Traps Extracted . | . . . . Installed . | . . . . Triggered . | . . . . Machines | -11 -10 -10 -9 ---------- Run | Yrd Mat Min Mat Machines Disabled 4 | . 1 . 3 Max in Single Turn 1 | . 1 . 1 Machines Repaired . | . . . . Machines Dismantled . | . . . . Machines Sabotaged . | . . . . Overloaded Fab Kills . | . . . . Hacking | -11 -10 -10 -9 --------- Run | Yrd Mat Min Mat Machines Accessed . | . . . . Terminals . | . . . . Fabricators . | . . . . Repair Stations . | . . . . Recycling Units . | . . . . Scanalyzers . | . . . . Garrison Access . | . . . . Total Hacks . | . . . . Successful . | . . . . Failed . | . . . . Catastrophic . | . . . . Database Lockouts . | . . . . Manual . | . . . . Terminals . | . . . . Fabricators . | . . . . Repair Stations . | . . . . Recycling Units . | . . . . Scanalyzers . | . . . . Garrison Access . | . . . . Terminal Hacks . | . . . . Fabricator Hacks . | . . . . Repair Station Hacks . | . . . . Recycling Unit Hacks . | . . . . Scanalyzer . | . . . . Garrison Access Hacks . | . . . . Unauthorized Hacks . | . . . . Terminals . | . . . . Fabricators . | . . . . Repair Stations . | . . . . Recycling Units . | . . . . Scanalyzers . | . . . . Garrison Access . | . . . . Data Cores Recovered . | . . . . Used . | . . . . Hacking Detections . | . . . . Full Trace Events . | . . . . Feedback Events . | . . . . Feedback Blocked . | . . . . Robot Schematics Acquired . | . . . . Robots Built . | . . . . Authchips . | . . . . Time . | . . . . Total Robot Build Rating . | . . . . Part Schematics Acquired . | . . . . Parts Built . | . . . . Authchips . | . . . . Time . | . . . . Total Part Build Rating . | . . . . Parts Repaired . | . . . . Time . | . . . . Parts Recycled . | . . . . Recycled Matter . | . . . . Retrieved Matter . | . . . . Retrieved Components . | . . . . Parts Scanalyzed . | . . . . Part Schematics Acquired . | . . . . Parts Damaged . | . . . . Bothacking | -11 -10 -10 -9 ------------ Run | Yrd Mat Min Mat Used RIF Installer . | . . . . Robots Hacked . | . . . . Non-combat . | . . . . Combat . | . . . . Robot Hacks Applied . | . . . . Relay Couplers Released . | . . . . Fabnet Peak Effective % . | . . . . Robots Rewired . | . . . . Allies Hacked . | . . . . Hacks Repelled . | . . . . Allies | -11 -10 -10 -9 -------- Run | Yrd Mat Min Mat Total Allies . | . . . . Largest Group . | . . . . Highest-Rated Group . | . . . . Highest-Rated Ally . | . . . . Total Orders . | . . . . Ally Attacks . | . . . . Total Damage . | . . . . Kills . | . . . . Allies Corrupted . | . . . . Allies Melted . | . . . . Intel | -11 -10 -10 -9 ------- Run | Yrd Mat Min Mat Robot Analysis Total . | . . . . Derelict Logs Recovered . | . . . . Drone Launches . | . . . . Drone Recoveries . | . . . . Exploration | -11 -10 -10 -9 ------------- Run | Yrd Mat Min Mat Turns Passed 955 | 96 280 37 542 Spaces Moved 471 | 47 137 22 265 Core 98 | 18 . . 80 Treads 373 | 29 137 22 185 Legs . | . . . . Wheels . | . . . . Hover . | . . . . Flight . | . . . . Fastest Speed 50 | 50 160 160 160 Average Speed 168 | 126 160 160 180 Slowest Speed 250 | 160 160 160 250 Overloaded Moves . | . . . . Propulsion Burnouts . | . . . . Robots Hopped . | . . . . Cave-ins Triggered . | . . . . Exploration Rate (%) 18 | 5 33 7 30 Regions Visited 3 Branch Regions 1 Pre-discovered Areas . | . . . . Known Exits Taken 2 | . 1 1 . Unknown Exits Taken 1 | 1 . . . Scrap Searched . | . . . . Spaces Dug . | . . . . Terrain Destroyed 5 | . . . 5 Melee . | . . . . Projectile . | . . . . AOE 5 | . . . 5 Terrain Rammed . | . . . . Walls Destroyed . | . . . . Machines Disabled . | . . . . Actions | -11 -10 -10 -9 --------- Run | Yrd Mat Min Mat Total 568 | 69 171 22 306 Wait 23 | . 16 . 7 Move 468 | 46 136 21 265 Hop . | . . . . Pick Up 19 | 9 3 . 7 Fast Attach 1 | 1 . . . Attach 11 | 6 . . 5 Detach . | . . . . Swap 4 | . 2 . 2 Drop 3 | . 1 . 2 Fire 39 | 7 13 1 18 Melee . | . . . . Ram . | . . . . Kick . | . . . . Crush . | . . . . Escape Stasis . | . . . . Rewire . | . . . . Trap . | . . . . Miscellaneous . | . . . . Route ------- -11/Scrapyard -10/Materials -10/Mines -9/Materials (discovered 1 exit: [*Sto]) History --------- Turn | Location | Event 7 | -11/Scrapyard | Discovered new exit (range 16) 97 | -11/Scrapyard | Entered Materials 319 | -10/Materials | Build established: Mutant 356 | -10/Materials | Discovered new exit (range 13) 375 | -10/Materials | Identified exit to Mines 377 | -10/Materials | Entered Mines 401 | -10/Mines | Discovered new exit (range 7) 412 | -10/Mines | Identified exit to Materials 414 | -10/Mines | Entered Materials 414 | -9/Materials | Evolved 2 slots: Power x1, Utility x1 767 | -9/Materials | Lost 5 parts (1p1n1u2w) 923 | -9/Materials | Core integrity fell below 50% 945 | -9/Materials | Discovered new exit (range 15) 947 | -9/Materials | Core integrity fell below 20% 956 | -9/Materials | Destroyed by G-34 Mercenary with Small Laser Last Messages --------------- 00879_ Massive razor-sharp blades shoot up from within the floor. 00879_ EMP Blaster severed. 00880_ U-05 Engineer destroyed. 00881_ U-05 Engineer lays Concrete. 00882_ K-01 Serf cleans the Matter Filter. 00883_ K-01 Serf collects debris. 00888_ R-06 Scavenger collects EMP Blaster. 00888_ K-01 Serf cleans the Matter Filter. 00898_ R-06 Scavenger collects Terrain Scan Processor. 00899_ W-16 Scout sends out distress signal. 00919_ G-34 Mercenary misfires. 00924_ W-16 Scout sends out distress signal. 00928_ K-01 Serf cleans the Matter Filter. 00936_ Core Shielding destroyed. 00938_ Identified Imp. Flight Unit. 00938_ Faulty integration triggers energy drain (-69). 00945_ EXIT=FOUND Map ----- +----------------------------------------------------+ | ! #???????????????# ^ #??????????????? | | !]#???????????????# """"" +??????????????? | | #???????????????# ^ """"" ? #??????????????? | | #???????????????##### """"" #??????????????? | | #???????????????????# """"" #??????????????? | | #############?????????# """"" #+#????????????? | | # #?????????# """"" #????????????? | | + """ #?????????# """"" #????????????? | | # """ !#?????????# #????????????? | | # # """ #?????????# #????????????? | | # # !#?????????# """"" ####?????????? | | #%% # #?????????# """"" #?????????? | | # %% ###/####?????????# """"" #?????????? | | # #?????????# """"" ak #?????????? | | # ###???????+ """"" #?????????? | | # #???????# """""k #?????????? | | # % #???????#g """""g #?????????? | | # " #???????# g #####?????? | | # " ###???????# ????? | | # " = #?????????# ????? | | # "" % #?????????# === ???? | | * ##????????# === ]]] ???? | | ^ "#????????# === ]]] ???? | | "" T#????????# ! ## ]] "???? | | """ "# ####Y #?? ???????????? | | # """ # @########???????????????? | | # """ = # < #??????????????????????? | | # " [[%## g #??????????????????????? | | #? ?? =% a ########??????????????????????? | | ????? != ### ???????????????????????????????? | | ????###### ##?# ????????????????????????????????? | | ?????????#/#??# ?????????????????????????????????? | | ?????????? ??#??????????????????????????????????? | | ?????????? ?????????????????????????????????????? | | ?????????? ?????????????????????????????????????? | | ?????????? ?????????????????????????????????????? | | ?????????????????????????????????????????????????? | | ?????????????????????????????????????????????????? | | ?????????????????????????????????????????????????? | | ?????????????????????????????????????????????????? | | ?????????????????????????????????????????????????? | | ?????????????????????????????????????????????????? | | ?????????????????????????????????????????????????? | | ?????????????????????????????????????????????????? | | ?????????????????????????????????????????????????? | | ?????????????????????????????????????????????????? | | ?????????????????????????????????????????????????? | | ?????????????????????????????????????????????????? | | ?????????????????????????????????????????????????? | | ?????????????????????????????????????????????????? | +----------------------------------------------------+ Best States ------------- Heat Dissipation 28 Energy Generation 15 Energy Capacity 400 Matter Stores 300 Matter Capacity 300 Sight Range 16 Terrain Scan Density 10 Core Shielding 20 Evasion (%) 50 Recoil Reduction 2 Item Schematics ----------------- None Robot Schematics ------------------ None Fabricated ------------ Nothing Alien Tech Used ----------------- None Achievements -------------- None Challenges ------------ None Game ------ Seed PropulsionAlloyArmor Manual? 0 Play Time 00:14:34 Cumulative 12.9 hours Start 2024.06.29 @ 13:00:44 End 2024.06.29 @ 13:10:34 Sessions 1 Manual Loads 0 Difficulty Rogue Special Mode None Game No. 59 Rogue 59 Adventurer 0 Explorer 0 Win Type - Total 0 Types 0/0/0/0/0/0/0/0/0 Lore% 5 Gallery% 17 Achievement% 12 Wizard Run 0 Options --------- Layout 1 ASCII 0 Keyboard 0 Movement Mouse Keybinds 0 Fullscreen 1 Font 24/Smallcaps Map View 50x35 Zoom Use 0% Tactical HUD 1 Map Filters NONE Filters NONE Steam 1 RUN: b7128d99-7a2e-4829-b705-62febcf7c0a5